fUSD/lending_fUSD_20250630
["ID","MTS","AMOUNT","RATE_DAILY","PERIOD"]
[368655803,1751267484246,-490.0,0.0001726,2]
[368655804,1751267484257,-1035.49,0.0001726,2]
[368655805,1751267484267,-490.0,0.0001726,2]
[368655806,1751267484276,-490.0,0.0001726,2]
[368655807,1751267484285,-490.0,0.0001726,2]
[368655808,1751267484295,-986.61,0.0001726,2]
[368655809,1751267484305,-490.0,0.0001726,2]
[368655810,1751267484314,-605.08,0.0001726,2]
[368655811,1751267484324,-1639.57,0.0001726,2]
[368655812,1751267484335,-490.0,0.0001726,2]
[368655813,1751267484345,-1328.29,0.0001726,2]
[368655814,1751267484354,-498.25935552,0.0001726,2]
[368655815,1751267484364,-490.0,0.0001726,2]
[368655816,1751267484374,-800.83,0.0001726,2]
[368655817,1751267484384,-971.97,0.0001726,2]
[368655818,1751267484393,-623.84,0.0001726,2]
[368655819,1751267484403,-940.14,0.0001726,2]
[368655820,1751267484413,-490.0,0.0001726,2]
[368655821,1751267484423,-4046.604477,0.0001726,2]
[368655822,1751267484432,-490.0,0.0001726,2]
[368655823,1751267484442,-490.0,0.0001726,2]
[368655824,1751267484452,-490.0,0.0001726,2]
[368655825,1751267484462,-490.0,0.0001726,2]
[368655826,1751267484471,-490.0,0.0001726,2]
[368655827,1751267484481,-534.43,0.0001726,2]
[368655828,1751267484490,-627.73,0.0001726,2]
[368655829,1751267484499,-490.0,0.0001726,2]
[368655830,1751267484509,-490.0,0.0001726,2]
[368655831,1751267484519,-490.0,0.0001726,2]
[368655832,1751267484529,-1749.67,0.0001726,2]
[368655833,1751267484538,-4363.921726,0.0001726,2]
[368655834,1751267484548,-490.0,0.0001726,2]
[368655835,1751267484558,-490.0,0.0001726,2]
[368655836,1751267484567,-835.69,0.0001726,2]
[368655837,1751267484576,-490.0,0.0001726,2]
[368655838,1751267484586,-490.0,0.0001726,2]
[368655839,1751267484595,-536.25,0.0001726,2]
[368655840,1751267484604,-519.63,0.0001726,2]
[368655841,1751267484613,-3818.829397,0.0001726,2]
[368655842,1751267484623,-157.608669,0.0001726,2]
[368655843,1751267484632,-490.0,0.0001726,2]
[368655844,1751267484643,-1380.98,0.0001726,2]
[368655845,1751267484653,-1129.16,0.0001726,2]
[368655846,1751267484662,-1252.21,0.0001726,2]
[368655847,1751267484672,-775.3,0.0001726,2]
[368655848,1751267484683,-154.8076,0.0001726,2]
[368655849,1751267484692,-490.0,0.0001726,2]
[368655850,1751267484703,-189.61704829,0.0001726,2]
[368655851,1751267484713,-505.86513,0.0001726,2]
[368655852,1751267484724,-613.46,0.0001726,2]
[368655853,1751267484734,-581.66,0.0001726,2]
[368655854,1751267484744,-490.0,0.0001726,2]
[368655855,1751267484753,-490.0,0.0001726,2]
[368655856,1751267484763,-1521.23,0.0001726,2]
[368655857,1751267484772,-490.0,0.0001726,2]
[368655858,1751267484782,-490.0,0.0001726,2]
[368655859,1751267484792,-501.16,0.0001726,2]
[368655860,1751267484802,-490.0,0.0001726,2]
[368655861,1751267484811,-490.0,0.0001726,2]
[368655862,1751267484820,-961.22,0.0001726,2]
[368655863,1751267484829,-490.0,0.0001726,2]
[368655864,1751267484838,-493.67475608,0.0001726,2]
[368655865,1751267484848,-2465.21,0.0001726,2]
[368655866,1751267484857,-627.46,0.0001726,2]
[368655867,1751267484866,-1327.29,0.0001726,2]
[368655868,1751267484877,-490.0,0.0001726,2]
[368655869,1751267484885,-660.31,0.0001726,2]
[368655870,1751267484895,-490.0,0.0001726,2]
[368655871,1751267484905,-1100.19,0.0001726,2]
[368655872,1751267484915,-492.88238381,0.0001726,2]
[368655873,1751267484925,-490.0,0.0001726,2]
[368655874,1751267484935,-490.0,0.0001726,2]
[368655875,1751267484944,-688.07,0.0001726,2]
[368655876,1751267484954,-541.62,0.0001726,2]
[368655877,1751267484963,-1826.2,0.0001726,2]
[368655878,1751267484973,-1485.67,0.0001726,2]
[368655879,1751267484984,-490.0,0.0001726,2]
[368655880,1751267484995,-441.95309565,0.0001726,2]
[368655881,1751267485006,-722.51,0.0001726,2]
[368655882,1751267485016,-490.0,0.0001726,2]
[368655883,1751267485026,-570.51,0.0001726,2]
[368655884,1751267485037,-1021.64,0.0001726,2]
[368655885,1751267485049,-490.0,0.0001726,2]
[368655886,1751267485059,-1436.7,0.0001726,2]
[368655887,1751267485068,-490.0,0.0001726,2]
[368655888,1751267485077,-490.0,0.0001726,2]
[368655889,1751267485087,-490.0,0.0001726,2]
[368655890,1751267485101,-1311.53,0.0001726,2]
[368655891,1751267485112,-169.44105351,0.0001726,2]
[368655892,1751267485122,-490.0,0.0001726,2]
[368655893,1751267485133,-490.0,0.0001726,2]
[368655894,1751267485144,-1254.13,0.0001726,2]
[368655895,1751267485154,-1313.75,0.0001726,2]
[368655896,1751267485163,-1211.69,0.0001726,2]
[368655897,1751267485174,-542.13186213,0.0001726,2]
[368655898,1751267485184,-530.23,0.0001726,2]
[368655899,1751267485193,-570.68,0.0001726,2]
[368655900,1751267485203,-490.0,0.0001726,2]
[368655901,1751267485212,-490.0,0.0001726,2]
[368655902,1751267485221,-490.0,0.0001726,2]
[368655903,1751267485231,-2476.26,0.0001726,2]
[368655904,1751267485240,-490.0,0.0001726,2]
[368655905,1751267485249,-1623.94,0.0001726,2]
[368655906,1751267485259,-641.05,0.0001726,2]
[368655907,1751267485268,-605.17,0.0001726,2]
[368655908,1751267485278,-519.73,0.0001726,2]
[368655909,1751267485287,-490.0,0.0001726,2]
[368655910,1751267485297,-490.0,0.0001726,2]
[368655911,1751267485306,-2476.24,0.0001726,2]
[368655912,1751267485316,-1563.29,0.0001726,2]
[368655913,1751267485325,-773.76,0.0001726,2]
[368655914,1751267485335,-2273.14,0.0001726,2]
[368655915,1751267485344,-490.0,0.0001726,2]
[368655916,1751267485353,-1957.52,0.0001726,2]
[368655917,1751267485362,-647.57,0.0001726,2]
[368655918,1751267485372,-489.82794223,0.0001726,2]
[368655919,1751267485381,-490.0,0.0001726,2]
[368655920,1751267485391,-490.0,0.0001726,2]
[368655921,1751267485400,-490.0,0.0001726,2]
[368655922,1751267485409,-490.0,0.0001726,2]
[368655923,1751267485419,-1114.66,0.0001726,2]
[368655924,1751267485428,-2239.62,0.0001726,2]
[368655925,1751267485438,-490.0,0.0001726,2]
[368655926,1751267485447,-490.0,0.0001726,2]
[368655927,1751267485457,-1458.3,0.0001726,2]
[368655928,1751267485467,-490.0,0.0001726,2]
[368655929,1751267485477,-490.0,0.0001726,2]
[368655930,1751267485487,-4010.68,0.0001726,2]
[368655931,1751267485496,-490.0,0.0001726,2]
[368655932,1751267485506,-2108.74,0.0001726,2]
[368655933,1751267485515,-490.0,0.0001726,2]
[368655934,1751267485525,-498.04,0.0001726,2]
[368655935,1751267485535,-1267.58,0.0001726,2]
[368655936,1751267485544,-490.0,0.0001726,2]
[368655937,1751267485554,-490.0,0.0001726,2]
[368655938,1751267485563,-957.35,0.0001726,2]
[368655939,1751267485573,-490.0,0.0001726,2]
[368655940,1751267485583,-490.0,0.0001726,2]
[368655941,1751267485592,-670.71,0.0001726,2]
[368655942,1751267485602,-490.0,0.0001726,2]
[368655943,1751267485611,-1688.24,0.0001726,2]
[368655944,1751267485621,-1289.57,0.0001726,2]
[368655945,1751267485630,-490.0,0.0001726,2]
[368655946,1751267485640,-490.0,0.0001726,2]
[368655947,1751267485649,-490.0,0.0001726,2]
[368655948,1751267485659,-824.49,0.0001726,2]
[368655949,1751267485669,-490.0,0.0001726,2]
[368655950,1751267485680,-584.71,0.0001726,2]
[368655951,1751267485689,-490.0,0.0001726,2]
[368655952,1751267485699,-1185.23,0.0001726,2]
[368655953,1751267485711,-540.88,0.0001726,2]
[368655954,1751267485720,-549.64,0.0001726,2]
[368655955,1751267485730,-490.0,0.0001726,2]
[368655956,1751267485740,-490.0,0.0001726,2]
[368655957,1751267485749,-490.0,0.0001726,2]
[368655958,1751267485759,-761.04,0.0001726,2]
[368655959,1751267485769,-482.72431395,0.0001726,2]
[368655960,1751267485778,-490.0,0.0001726,2]
[368655961,1751267485787,-490.0,0.0001726,2]
[368655962,1751267485798,-490.0,0.0001726,2]
[368655963,1751267485808,-758.81,0.0001726,2]
[368655964,1751267485819,-490.0,0.0001726,2]
[368655965,1751267485829,-818.23,0.0001726,2]
[368655966,1751267485839,-748.81,0.0001726,2]
[368655967,1751267485850,-1460.14,0.0001726,2]
[368655968,1751267485860,-490.0,0.0001726,2]
[368655969,1751267485870,-728.93,0.0001726,2]
[368655970,1751267485881,-601.04851412,0.0001726,2]
[368655971,1751267485890,-490.0,0.0001726,2]
[368655972,1751267485900,-1406.09,0.0001726,2]
[368655973,1751267485910,-490.0,0.0001726,2]
[368655974,1751267485920,-490.0,0.0001726,2]
[368655975,1751267485933,-1218.17,0.0001726,2]
[368655976,1751267485943,-490.0,0.0001726,2]
[368655977,1751267485953,-1208.24,0.0001726,2]
[368655978,1751267486197,-490.0,0.0001726,2]
[368655979,1751267486207,-490.0,0.0001726,2]
[368655980,1751267486216,-1756.52,0.0001726,2]
[368655981,1751267486226,-490.0,0.0001726,2]
[368655982,1751267486235,-673.72,0.0001726,2]
[368655983,1751267486244,-670.95,0.0001726,2]
[368655984,1751267486254,-1311.29,0.0001726,2]
[368655985,1751267486263,-1805.35,0.0001726,2]
[368655986,1751267486273,-1233.48,0.0001726,2]
[368655987,1751267486282,-518.88,0.0001726,2]
[368655988,1751267486291,-1813.53,0.0001726,2]
[368655989,1751267486300,-759.03,0.0001726,2]
[368655990,1751267486310,-490.0,0.0001726,2]
[368655991,1751267486320,-490.0,0.0001726,2]
[368655992,1751267486330,-545.4299939,0.0001726,2]
[368655993,1751267486339,-490.0,0.0001726,2]
[368655994,1751267486349,-490.0,0.0001726,2]
[368655995,1751267486359,-608.2,0.0001726,2]
[368655996,1751267486368,-3911.58,0.0001726,2]
[368655997,1751267486379,-2453.59,0.0001726,2]
[368655998,1751267486389,-986.67,0.0001726,2]
[368655999,1751267486399,-490.0,0.0001726,2]
[368656000,1751267486409,-1569.86,0.0001726,2]
[368656001,1751267486419,-176.542874,0.0001726,2]
[368656002,1751267486430,-534.31,0.0001726,2]
[368656003,1751267486439,-792.03,0.0001726,2]
[368656004,1751267486449,-490.0,0.0001726,2]
[368656005,1751267486459,-490.0,0.0001726,2]
[368656006,1751267486469,-2907.37,0.0001726,2]
[368656007,1751267486480,-1139.12,0.0001726,2]
[368656008,1751267486489,-490.0,0.0001726,2]
[368656009,1751267486499,-1525.18,0.0001726,2]
[368656010,1751267486508,-1083.01,0.0001726,2]
[368656011,1751267486518,-711.7,0.0001726,2]
[368656012,1751267486528,-490.0,0.0001726,2]
[368656013,1751267486538,-805.1,0.0001726,2]
[368656014,1751267486548,-1219.45,0.0001726,2]
[368656015,1751267486558,-2489.82,0.0001726,2]
[368656016,1751267486568,-490.0,0.0001726,2]
[368656017,1751267486578,-2232.05,0.0001726,2]
[368656018,1751267486588,-1110.71,0.0001726,2]
[368656019,1751267486598,-490.0,0.0001726,2]
[368656020,1751267486608,-905.33,0.0001726,2]
[368656021,1751267486618,-1206.95,0.0001726,2]
[368656022,1751267486628,-490.0,0.0001726,2]
[368656023,1751267486638,-523.23,0.0001726,2]
[368656024,1751267486647,-490.0,0.0001726,2]
[368656025,1751267486658,-1032.86,0.0001726,2]
[368656026,1751267486667,-1399.46,0.0001726,2]
[368656027,1751267486678,-940.15,0.0001726,2]
[368656028,1751267486687,-2155.96,0.0001726,2]
[368656029,1751267486697,-798.99,0.0001726,2]
[368656030,1751267486707,-490.0,0.0001726,2]
[368656031,1751267486716,-1151.4,0.0001726,2]
[368656032,1751267486725,-1411.63,0.0001726,2]
[368656033,1751267486735,-490.0,0.0001726,2]
[368656034,1751267486744,-490.0,0.0001726,2]
[368656035,1751267486754,-490.0,0.0001726,2]
[368656036,1751267486763,-490.0,0.0001726,2]
[368656037,1751267486772,-3267.39,0.0001726,2]
[368656038,1751267486783,-1104.08,0.0001726,2]
[368656039,1751267486793,-701.32,0.0001726,2]
[368656040,1751267486803,-563.52,0.0001726,2]
[368656041,1751267486813,-491.33,0.0001726,2]
[368656042,1751267486823,-946.01,0.0001726,2]
[368656043,1751267486832,-1143.09,0.0001726,2]
[368656044,1751267486842,-2215.67,0.0001726,2]
[368656045,1751267486851,-2238.17,0.0001726,2]
[368656046,1751267486860,-490.0,0.0001726,2]
[368656047,1751267486870,-490.0,0.0001726,2]
[368656048,1751267486879,-1642.95,0.0001726,2]
[368656049,1751267486889,-3529.66,0.0001726,2]
[368656050,1751267486899,-1031.88,0.0001726,2]
[368656051,1751267486908,-490.0,0.0001726,2]
[368656052,1751267486918,-1010.2,0.0001726,2]
[368656053,1751267486928,-667.33,0.0001726,2]
[368656054,1751267486937,-1712.17,0.0001726,2]
[368656055,1751267486947,-626.08,0.0001726,2]
[368656056,1751267486956,-860.14,0.0001726,2]
[368656057,1751267486968,-490.0,0.0001726,2]
[368656058,1751267486979,-3656.02,0.0001726,2]
[368656059,1751267486989,-834.59,0.0001726,2]
[368656060,1751267486998,-490.0,0.0001726,2]
[368656061,1751267487007,-490.0,0.0001726,2]
[368656062,1751267487017,-324.79707142,0.0001726,2]
[368656063,1751267487029,-1030.93,0.0001726,2]
[368656064,1751267487038,-490.0,0.0001726,2]
[368656065,1751267487050,-490.0,0.0001726,2]
[368656066,1751267487059,-559.77,0.0001726,2]
[368656067,1751267487069,-490.0,0.0001726,2]
[368656068,1751267487078,-3042.8,0.0001726,2]
[368656069,1751267487088,-490.0,0.0001726,2]
[368656070,1751267487101,-490.0,0.0001726,2]
[368656071,1751267487110,-710.3,0.0001726,2]
[368656072,1751267487120,-300.32603011,0.0001726,2]
[368656073,1751267487131,-959.3,0.0001726,2]
[368656074,1751267487140,-2433.91,0.0001726,2]
[368656075,1751267487150,-2258.69,0.0001726,2]
[368656076,1751267487160,-490.0,0.0001726,2]
[368656077,1751267487171,-499.19,0.0001726,2]
[368656078,1751267487183,-1546.51,0.0001726,2]
[368656079,1751267487192,-490.0,0.0001726,2]
[368656080,1751267487202,-490.0,0.0001726,2]
[368656081,1751267487211,-683.3,0.0001726,2]
[368656082,1751267487221,-490.0,0.0001726,2]
[368656083,1751267487230,-490.0,0.0001726,2]
[368656084,1751267487239,-490.0,0.0001726,2]
[368656085,1751267487248,-1887.4,0.0001726,2]
[368656086,1751267487258,-1233.56,0.0001726,2]
[368656087,1751267487267,-533.17,0.0001726,2]
[368656088,1751267487276,-490.0,0.0001726,2]
[368656089,1751267487286,-1913.05,0.0001726,2]
[368656090,1751267487295,-490.0,0.0001726,2]
[368656091,1751267487304,-934.44,0.0001726,2]
[368656092,1751267487314,-557.85,0.0001726,2]
[368656093,1751267487323,-490.0,0.0001726,2]
[368656094,1751267487333,-752.53,0.0001726,2]
[368656095,1751267487342,-731.26,0.0001726,2]
[368656096,1751267487352,-285.09411234,0.0001726,2]
[368656097,1751267487361,-1839.15,0.0001726,2]
[368656098,1751267487371,-1061.04,0.0001726,2]
[368656099,1751267487380,-1002.9,0.0001726,2]
[368656100,1751267487390,-2501.37,0.0001726,2]
[368656101,1751267487399,-490.0,0.0001726,2]
[368656102,1751267487408,-490.0,0.0001726,2]
[368656103,1751267487418,-1343.9,0.0001726,2]
[368656104,1751267487429,-609.73,0.0001726,2]
[368656105,1751267487439,-490.0,0.0001726,2]
[368656106,1751267487448,-2212.24,0.0001726,2]
[368656107,1751267487458,-764.05,0.0001726,2]
[368656108,1751267487467,-490.0,0.0001726,2]
[368656109,1751267487477,-490.0,0.0001726,2]
[368656110,1751267487487,-490.0,0.0001726,2]
[368656111,1751267487496,-490.0,0.0001726,2]
[368656112,1751267487506,-2808.96,0.0001726,2]
[368656113,1751267487516,-662.38,0.0001726,2]
[368656114,1751267487526,-671.65,0.0001726,2]
[368656115,1751267487536,-490.0,0.0001726,2]
[368656116,1751267487546,-490.0,0.0001726,2]
[368656117,1751267487555,-490.0,0.0001726,2]
[368656118,1751267487565,-507.67,0.0001726,2]
[368656119,1751267487574,-517.86,0.0001726,2]
[368656120,1751267487584,-490.0,0.0001726,2]
[368656121,1751267487593,-2145.41,0.0001726,2]
[368656122,1751267487603,-490.0,0.0001726,2]
[368656123,1751267487613,-490.0,0.0001726,2]
[368656124,1751267487622,-672.85,0.0001726,2]
[368656125,1751267487631,-2284.2,0.0001726,2]
[368656126,1751267487640,-1011.0,0.0001726,2]
[368656127,1751267487650,-490.0,0.0001726,2]
[368656128,1751267487659,-751.27,0.0001726,2]
[368656129,1751267487668,-490.0,0.0001726,2]
[368656130,1751267487679,-490.0,0.0001726,2]
[368656131,1751267487688,-875.71,0.0001726,2]
[368656132,1751267487697,-1491.73,0.0001726,2]
[368656133,1751267487707,-490.0,0.0001726,2]
[368656134,1751267487716,-543.73,0.0001726,2]
[368656135,1751267487726,-2953.96,0.0001726,2]
[368656136,1751267487736,-772.44,0.0001726,2]
[368656137,1751267487746,-1367.71,0.0001726,2]
[368656138,1751267487755,-714.44,0.0001726,2]
[368656139,1751267487764,-490.0,0.0001726,2]
[368656140,1751267487774,-1494.37,0.0001726,2]
[368656141,1751267487783,-663.84,0.0001726,2]
[368656142,1751267487793,-490.0,0.0001726,2]
[368656143,1751267487802,-1079.29,0.0001726,2]
[368656144,1751267487811,-3356.8,0.0001726,2]
[368656145,1751267487820,-453.96234061,0.0001726,2]
[368656146,1751267487829,-3925.21,0.0001726,2]
[368656147,1751267487839,-510.15,0.0001726,2]
[368656148,1751267487848,-3282.04,0.0001726,2]
[368656149,1751267487859,-490.0,0.0001726,2]
[368656150,1751267487868,-1272.02,0.0001726,2]
[368656151,1751267487878,-490.0,0.0001726,2]
[368656152,1751267487888,-490.0,0.0001726,2]
[368656153,1751267487897,-568.77,0.0001726,2]
[368656154,1751267487908,-2464.47,0.0001726,2]
[368656155,1751267487917,-490.0,0.0001726,2]
[368656156,1751267487927,-490.0,0.0001726,2]
[368656157,1751267487937,-2472.06,0.0001726,2]
[368656158,1751267487947,-657.57,0.0001726,2]
[368656159,1751267487957,-490.0,0.0001726,2]
[368656160,1751267487967,-1260.99,0.0001726,2]
[368656161,1751267487977,-490.0,0.0001726,2]
[368656162,1751267487987,-490.0,0.0001726,2]
[368656163,1751267487997,-575.9,0.0001726,2]
[368656164,1751267488006,-3486.76,0.0001726,2]
[368656165,1751267488016,-650.41,0.0001726,2]
[368656166,1751267488025,-490.0,0.0001726,2]
[368656167,1751267488036,-490.0,0.0001726,2]
[368656168,1751267488046,-569.55,0.0001726,2]
[368656169,1751267488056,-490.0,0.0001726,2]
[368656170,1751267488065,-1177.29,0.0001726,2]
[368656171,1751267488076,-1634.31,0.0001726,2]
[368656172,1751267488085,-3740.54,0.0001726,2]
[368656173,1751267488098,-625.76,0.0001726,2]
[368656174,1751267488107,-490.0,0.0001726,2]
[368656175,1751267488117,-740.73,0.0001726,2]
[368656176,1751267488126,-951.92,0.0001726,2]
[368656177,1751267488138,-519.44,0.0001726,2]
[368656178,1751267488147,-490.0,0.0001726,2]
[368656179,1751267488156,-490.0,0.0001726,2]
[368656180,1751267488167,-490.0,0.0001726,2]
[368656181,1751267488177,-1372.31,0.0001726,2]
[368656182,1751267488187,-490.0,0.0001726,2]
[368656183,1751267488196,-490.0,0.0001726,2]
[368656184,1751267488205,-586.15,0.0001726,2]
[368656185,1751267488215,-945.19,0.0001726,2]
[368656186,1751267488224,-490.0,0.0001726,2]
[368656187,1751267488233,-1141.47,0.0001726,2]
[368656188,1751267488243,-490.0,0.0001726,2]
[368656189,1751267488252,-981.2,0.0001726,2]
[368656190,1751267488262,-3175.15,0.0001726,2]
[368656191,1751267488271,-490.0,0.0001726,2]
[368656192,1751267488281,-431.85958326,0.0001726,2]
[368656193,1751267488290,-832.07,0.0001726,2]
[368656194,1751267488300,-1170.01,0.0001726,2]
[368656195,1751267488309,-488.0,0.0001726,2]
[368656196,1751267488319,-531.2,0.0001726,2]
[368656197,1751267488328,-584.93,0.0001726,2]
[368656198,1751267488338,-490.0,0.0001726,2]
[368656199,1751267488347,-490.0,0.0001726,2]
[368656200,1751267488357,-312.37073292,0.0001726,2]
[368656201,1751267488366,-2521.62,0.0001726,2]
[368656202,1751267488376,-490.0,0.0001726,2]
[368656203,1751267488386,-490.0,0.0001726,2]
[368656204,1751267488395,-922.18,0.0001726,2]
[368656205,1751267488405,-1252.54,0.0001726,2]
[368656206,1751267488415,-599.14,0.0001726,2]
[368656207,1751267488424,-490.0,0.0001726,2]
[368656208,1751267488434,-3136.28,0.0001726,2]
[368656209,1751267488444,-3097.05,0.0001726,2]
[368656210,1751267488453,-511.63,0.0001726,2]
[368656211,1751267488463,-557.59,0.0001726,2]
[368656212,1751267488473,-490.0,0.0001726,2]
[368656213,1751267488484,-490.0,0.0001726,2]
[368656214,1751267488494,-490.0,0.0001726,2]
[368656215,1751267488504,-490.0,0.0001726,2]
[368656216,1751267488514,-1082.72,0.0001726,2]
[368656217,1751267488524,-490.0,0.0001726,2]
[368656218,1751267488533,-490.0,0.0001726,2]
[368656219,1751267488543,-490.0,0.0001726,2]
[368656220,1751267488552,-490.0,0.0001726,2]
[368656221,1751267488562,-3323.29,0.0001726,2]
[368656222,1751267488571,-1275.4,0.0001726,2]
[368656223,1751267488581,-896.09,0.0001726,2]
[368656224,1751267488591,-7352.81,0.0001726,2]
[368656225,1751267488600,-490.0,0.0001726,2]
[368656226,1751267488609,-1187.38,0.0001726,2]
[368656227,1751267488619,-490.0,0.0001726,2]
[368656228,1751267488628,-661.4,0.0001726,2]
[368656229,1751267488730,-947.26,0.0001726,2]
[368656230,1751267488740,-2729.68,0.0001726,2]
[368656231,1751267488749,-697.57,0.0001726,2]
[368656232,1751267488758,-3003.1,0.0001726,2]
[368656233,1751267488767,-490.0,0.0001726,2]
[368656234,1751267488777,-506.42,0.0001726,2]
[368656235,1751267488786,-1404.12,0.0001726,2]
[368656236,1751267488795,-490.0,0.0001726,2]
[368656237,1751267488804,-699.68,0.0001726,2]
[368656238,1751267488814,-845.57,0.0001726,2]
[368656239,1751267488823,-490.0,0.0001726,2]
[368656240,1751267488832,-2174.56,0.0001726,2]
[368656241,1751267488841,-1564.05,0.0001726,2]
[368656242,1751267488850,-490.0,0.0001726,2]
[368656243,1751267488859,-3326.54,0.0001726,2]
[368656244,1751267488870,-490.0,0.0001726,2]
[368656245,1751267488879,-738.46,0.0001726,2]
[368656246,1751267488888,-826.07,0.0001726,2]
[368656247,1751267488897,-2866.33,0.0001726,2]
[368656248,1751267488907,-490.0,0.0001726,2]
[368656249,1751267488916,-739.44,0.0001726,2]
[368656250,1751267488926,-490.0,0.0001726,2]
[368656251,1751267488935,-490.0,0.0001726,2]
[368656252,1751267488945,-490.0,0.0001726,2]
[368656253,1751267488954,-635.44512753,0.0001726,2]
[368656254,1751267488963,-2893.93,0.0001726,2]
[368656255,1751267488973,-1384.95,0.0001726,2]
[368656256,1751267488982,-813.02,0.0001726,2]
[368656257,1751267488991,-1928.24,0.0001726,2]
[368656258,1751267489000,-3359.08,0.0001726,2]
[368656259,1751267489009,-490.0,0.0001726,2]
[368656260,1751267489018,-735.48,0.0001726,2]
[368656261,1751267489027,-490.0,0.0001726,2]
[368656262,1751267489037,-3125.15,0.0001726,2]
[368656263,1751267489047,-923.54,0.0001726,2]
[368656264,1751267489058,-490.0,0.0001726,2]
[368656265,1751267489067,-2403.69,0.0001726,2]
[368656266,1751267489076,-1966.1,0.0001726,2]
[368656267,1751267489086,-490.0,0.0001726,2]
[368656268,1751267489101,-966.44,0.0001726,2]
[368656269,1751267489110,-490.0,0.0001726,2]
[368656270,1751267489121,-1873.07,0.0001726,2]
[368656271,1751267489131,-1907.47,0.0001726,2]
[368656272,1751267489142,-524.51,0.0001726,2]
[368656273,1751267489151,-490.0,0.0001726,2]
[368656274,1751267489160,-470.0,0.0001726,2]
[368656275,1751267489171,-490.0,0.0001726,2]
[368656276,1751267489182,-2103.92,0.0001726,2]
[368656277,1751267489191,-536.32,0.0001726,2]
[368656278,1751267489201,-490.0,0.0001726,2]
[368656279,1751267489212,-490.0,0.0001726,2]
[368656280,1751267489223,-490.0,0.0001726,2]
[368656281,1751267489232,-678.27,0.0001726,2]
[368656282,1751267489243,-3108.02,0.0001726,2]
[368656283,1751267489252,-2999.28,0.0001726,2]
[368656284,1751267489261,-1097.93,0.0001726,2]
[368656285,1751267489270,-490.0,0.0001726,2]
[368656286,1751267489279,-490.0,0.0001726,2]
[368656287,1751267489288,-306.57571243,0.0001726,2]
[368656288,1751267489297,-2756.49,0.0001726,2]
[368656289,1751267489307,-490.0,0.0001726,2]
[368656290,1751267489316,-554.82,0.0001726,2]
[368656291,1751267489326,-490.0,0.0001726,2]
[368656292,1751267489336,-490.0,0.0001726,2]
[368656293,1751267489347,-3034.87,0.0001726,2]
[368656294,1751267489356,-695.5,0.0001726,2]
[368656295,1751267489365,-1346.34,0.0001726,2]
[368656296,1751267489375,-490.0,0.0001726,2]
[368656297,1751267489385,-490.0,0.0001726,2]
[368656298,1751267489394,-1250.9,0.0001726,2]
[368656299,1751267489404,-1219.05,0.0001726,2]
[368656300,1751267489413,-490.0,0.0001726,2]
[368656301,1751267489422,-490.0,0.0001726,2]
[368656302,1751267489433,-582.15,0.0001726,2]